bitfinex/quotes_ETHUSD_20250518
["timestamp","ask_amount","ask_price","bid_price","bid_amount"]
[1747600008987,6.06,2377.2,2376.4,3.84292979]
[1747600009147,4.20732891,2376.9,2376.5,12.994]
[1747600009342,4.2075096,2376.8,2376.5,12.994]
[1747600009557,4.20767316,2376.7,2376.5,12.994]
[1747600010091,8.0,2377.0,2376.3,12.993]
[1747600010246,4.20760382,2376.7,2376.3,12.993]
[1747600010447,4.20777749,2376.6,2376.3,12.993]
[1747600010646,4.20787902,2376.5,2376.3,12.993]
[1747600010874,4.20772026,2376.6,2376.3,12.993]
[1747600011187,4.20800788,2376.5,2376.3,12.993]
[1747600011344,12.977,2376.8,2376.3,12.993]
[1747600011686,6.06,2377.2,2376.3,12.993]
[1747600011687,6.06,2377.2,2376.6,4.20752042]
[1747600011857,14.3154473,2377.9,2376.4,2.1903]
[1747600012053,1.6387,2377.5,2376.5,17.20083812]
[1747600012374,4.20576864,2377.7,2377.1,4.20663601]
[1747600012575,5.84436977,2377.8,2377.2,4.20649622]
[1747600012777,4.20580877,2377.7,2377.2,12.992]
[1747600012977,4.20606136,2377.6,2377.2,12.992]
[1747600013588,4.20612807,2377.5,2377.2,12.992]
[1747600013795,0.0443033,2377.4,2377.0,1.6403]
[1747600013957,4.20636069,2377.4,2377.1,12.992]
[1747600014147,4.20614168,2377.5,2377.1,12.992]
[1747600014479,4.20614168,2377.5,2377.0,4.20689518]
[1747600014679,4.20586358,2377.7,2377.2,4.20653815]
[1747600014867,4.20574504,2377.7,2377.1,12.992]
[1747600015383,4.20613347,2377.5,2377.1,12.992]
[1747600015560,4.20613347,2377.5,2377.2,12.992]
[1747600015757,4.20594746,2377.6,2377.1,4.20674702]
[1747600015958,4.20583173,2377.7,2377.2,17.19657221]
[1747600016173,18.80129185,2377.8,2377.2,12.99]
[1747600016370,18.80129185,2377.8,2377.3,17.19638941]
[1747600016371,5.84440902,2377.8,2377.3,17.19638941]
[1747600016706,4.20586092,2377.7,2377.3,12.99]
[1747600016863,5.84429055,2377.8,2377.3,12.99]
[1747600017197,4.20583091,2377.7,2377.2,12.99]
[1747600017365,4.20611192,2377.5,2377.2,12.99]
[1747600017563,4.20600819,2377.6,2377.2,12.99]
[1747600017893,13.84430614,2377.8,2377.2,12.99]
[1747600018060,5.84430614,2377.8,2377.2,12.99]
[1747600018261,5.84430614,2377.8,2377.3,4.20641964]
[1747600018457,5.84430614,2377.8,2376.9,4.20714495]
[1747600018458,1.6387,2377.8,2376.9,4.20713621]
[1747600018693,4.20614509,2377.5,2377.0,17.19690252]
[1747600018894,4.20614509,2377.5,2377.0,4.20690252]
[1747600019063,4.2064026,2377.4,2377.0,12.989]
[1747600019259,4.20587546,2377.7,2377.0,16.68287098]
[1747600019463,4.20601465,2377.6,2377.0,20.8896886]
[1747600019684,4.20646081,2377.3,2376.8,19.7425]
[1747600019999,0.0443033,2377.7,2377.0,12.989]
[1747600020294,0.0443033,2377.7,2376.6,19.8137]
[1747600020295,4.20680661,2377.1,2376.6,19.8137]
[1747600020499,12.20751462,2376.7,2376.6,19.7637]
[1747600020697,12.20751462,2376.7,2376.1,4.20848311]
[1747600020698,8.0,2376.7,2376.1,4.20848311]
[1747600020997,6.06,2376.6,2376.2,4.20826186]
[1747600021193,6.06,2376.6,2376.1,1.87933831]
[1747600021363,6.06,2376.6,2376.1,6.08786435]
[1747600021564,6.06,2376.6,2376.2,4.20827008]
[1747600021799,6.06,2376.6,2376.2,17.19727008]
[1747600022498,6.06,2376.6,2376.2,15.47712162]
[1747600022799,6.06,2376.6,2376.2,19.68543914]
[1747600022997,6.06,2376.6,2376.0,1.5959]
[1747600023164,6.06,2376.6,2376.1,12.99]
[1747600023590,6.06,2376.6,2376.3,4.20806081]
[1747600023797,6.06,2376.6,2376.4,4.20804578]
[1747600023978,6.06,2376.6,2376.0,1.5959]
[1747600024183,6.06,2376.6,2376.5,12.99]
[1747600024398,1.658,2376.5,2376.1,2.14096]
[1747600024599,1.658,2376.5,2375.9,12.99]
[1747600024801,10.26771808,2376.6,2376.4,4.2078981]
[1747600024802,6.06,2376.6,2376.4,4.2078981]
[1747600024961,6.06,2376.6,2376.0,1.5959]
[1747600025165,6.06,2376.6,2376.2,4.2083045]
[1747600025377,6.06,2376.6,2376.3,4.20816004]
[1747600025578,6.06,2376.6,2376.1,12.99]
[1747600025775,6.06,2376.6,2376.2,4.25048133]
[1747600025977,6.06,2376.6,2376.5,4.20786871]
[1747600026197,6.06,2376.6,2376.4,4.20796377]
[1747600026376,6.06,2376.6,2376.1,14.40789282]
[1747600026572,4.20734287,2376.8,2376.3,4.20805509]
[1747600026797,6.06,2376.9,2376.1,14.40789282]
[1747600027000,4.20768579,2376.7,2376.2,4.20831084]
[1747600027178,4.20739914,2376.8,2376.3,4.20811935]
[1747600027367,6.06,2376.9,2376.4,12.99]
[1747600027564,6.06,2377.1,2377.0,4.20698359]
[1747600027770,11.92435718,2377.4,2376.9,4.2070702]
[1747600027991,4.20649664,2377.3,2376.8,4.20728492]
[1747600028192,4.20698359,2377.0,2376.9,12.99]
[1747600028469,4.2081429,2376.4,2376.0,21.4096]
[1747600028665,5.86693135,2375.9,2375.7,19.8137]
[1747600028899,4.20910851,2375.8,2375.7,19.8137]
[1747600029085,12.20910851,2375.8,2375.7,19.8137]
[1747600029290,17.19552631,2375.0,2374.9,1.33075956]
[1747600029501,12.21229991,2374.0,2373.9,1.66262968]
[1747600029802,12.869,2374.6,2373.9,1.66262968]
[1747600030299,1.65130443,2374.9,2374.0,4.21219793]
[1747600030485,4.21065464,2375.0,2374.1,0.58748276]
[1747600030687,4.21155154,2374.5,2374.2,19.8137]
[1747600031215,0.31054802,2375.0,2374.2,19.8137]
[1747600031376,4.21121966,2374.7,2374.2,19.8137]
[1747600031572,4.21121966,2374.7,2374.1,13.57748276]
[1747600031797,12.21039944,2375.1,2374.1,13.57748276]
[1747600031979,4.21115704,2374.7,2374.1,13.57748276]
[1747600032175,4.21160145,2374.4,2374.1,13.57748276]
[1747600032371,4.21148451,2374.5,2374.1,12.99]
[1747600032590,4.21091417,2374.8,2374.1,12.99]
[1747600032923,4.21070758,2374.9,2374.2,4.21184878]
[1747600033097,4.21094273,2374.8,2374.1,12.99]
[1747600033278,8.0,2375.1,2374.1,17.20209505]
[1747600033481,12.854,2375.1,2374.2,1.72020951]
[1747600033787,4.21082042,2374.9,2374.2,5.93209237]
[1747600033987,12.854,2375.2,2374.2,1.72020951]
[1747600034188,4.21212248,2374.1,2374.0,19.8137]
[1747600034579,4.2127357,2373.8,2373.3,18.168]
[1747600035109,4.21283914,2373.7,2373.3,18.168]
[1747600035319,6.82615646,2374.8,2373.3,18.168]
[1747600035500,0.31186599,2374.1,2373.6,4.21285116]
[1747600035698,0.31186599,2374.1,2373.7,0.84260243]
[1747600035890,0.31186599,2374.1,2373.5,4.21305042]
[1747600036089,0.31186599,2374.1,2373.5,4.21306105]
[1747600036416,8.0,2374.6,2373.4,12.997]
[1747600036598,4.21204751,2374.2,2373.4,17.21035855]
[1747600036817,4.21229991,2374.0,2373.5,13.0]
[1747600037020,4.21265591,2373.8,2373.5,13.0]
[1747600037204,4.21292558,2373.7,2373.3,37.9817]
[1747600037525,4.21263157,2373.9,2373.4,13.0]
[1747600037727,4.21311396,2373.6,2373.4,13.0]
[1747600037938,4.21311396,2373.6,2372.9,24.02791432]
[1747600037939,8.0,2373.9,2372.9,19.8137]
[1747600038239,4.21399065,2373.1,2372.9,19.8137]
[1747600038540,4.21393993,2373.1,2372.9,19.8137]
[1747600038725,4.21399014,2373.1,2372.7,12.832]
[1747600038923,4.25770082,2373.4,2372.7,12.832]
[1747600039227,4.21387576,2373.2,2372.6,4.21469339]
[1747600039409,4.21387576,2373.2,2372.6,17.04669339]
[1747600039613,12.829,2373.3,2372.5,1.6347]
[1747600039811,4.21398553,2373.1,2372.6,12.832]
[1747600040445,4.21378248,2373.2,2372.6,4.21470687]
[1747600040637,4.21366856,2373.3,2372.5,14.4697]
[1747600040638,4.21400722,2373.1,2372.5,14.4697]
[1747600040940,4.21436374,2372.9,2372.6,12.835]
[1747600041109,4.21436374,2372.9,2372.5,1.6347]
[1747600041312,4.2147543,2372.7,2372.4,31.016]
[1747600041550,4.21549616,2372.2,2372.1,19.8137]
[1747600041836,4.21534435,2372.3,2371.8,17.05118113]
[1747600042133,12.817,2372.7,2371.8,15.11412023]
[1747600042353,12.817,2372.7,2372.3,1.5235]
[1747600042832,12.817,2372.7,2372.3,14.3625]
[1747600043197,12.817,2372.7,2372.3,1.5235]
[1747600043439,12.817,2372.7,2372.3,18.57774813]
[1747600043818,12.817,2372.7,2372.3,14.3625]
[1747600044233,12.817,2372.7,2372.4,4.21506258]
[1747600044436,12.817,2372.7,2372.3,18.57778776]
[1747600044749,17.01895627,2373.1,2372.3,1.5235]
[1747600044951,17.01895627,2373.1,2372.2,12.839]
[1747600044952,8.0,2372.8,2372.2,12.839]
[1747600045264,4.21546678,2372.3,2371.9,12.839]
[1747600045423,4.21460783,2372.7,2371.9,12.839]
[1747600045424,4.21505587,2372.5,2371.9,12.839]
[1747600045759,0.32364783,2372.9,2371.9,14.42014868]
[1747600045938,4.21495637,2372.6,2372.0,4.21570858]
[1747600046254,4.21460993,2372.7,2372.2,4.21539038]
[1747600046455,4.21434299,2372.9,2371.9,14.42014868]
[1747600046653,4.21434299,2372.9,2372.3,4.21524028]
[1747600046859,4.2139943,2373.1,2372.6,4.21466841]
[1747600047059,12.795,2373.3,2372.9,4.21420484]
[1747600047351,4.21390046,2373.1,2372.6,12.841]
[1747600047559,4.2136597,2373.3,2372.6,17.05566299]
[1747600047728,1.6333,2373.4,2372.7,4.21460434]
[1747600047923,1.6333,2373.4,2371.9,1.5394]
[1747600047924,8.0,2373.2,2371.9,1.5394]
[1747600048157,9.6776033,2373.1,2371.6,1.5394]
[1747600048337,8.0,2372.8,2371.8,4.21614035]
[1747600048533,12.8313033,2372.7,2371.8,4.21610069]
[1747600048759,4.21511041,2372.5,2371.9,4.21593411]
[1747600048933,6.06,2372.8,2372.4,4.21503465]
[1747600049252,4.21426277,2372.9,2372.2,1.5413]
[1747600049566,6.06,2373.1,2372.5,12.842]
[1747600049736,4.21452812,2372.8,2372.5,12.842]
[1747600049922,6.06,2373.1,2372.3,12.842]
[1747600050128,6.06,2373.1,2372.7,4.21446033]
[1747600050758,6.06,2373.1,2372.5,17.05689762]
[1747600050759,6.06,2373.1,2372.6,4.21469373]
[1747600050960,6.06,2373.1,2372.7,4.21459964]
[1747600051259,6.06,2373.3,2372.7,12.842]
[1747600051468,3.52845625,2373.5,2373.4,5.75466479]
[1747600051675,1.5304,2374.9,2374.0,1.5413]
[1747600051885,0.35273274,2375.2,2374.1,12.842]
[1747600051886,4.56294141,2375.2,2374.1,12.842]
[1747600052202,4.56300258,2375.2,2374.1,12.842]
[1747600052356,0.66521035,2375.2,2374.1,12.842]
[1747600052694,4.21105946,2374.7,2374.2,4.21187005]
[1747600052883,4.21093433,2374.8,2374.2,4.21187005]
[1747600053064,4.21113872,2374.7,2374.2,12.842]
[1747600053484,4.21088106,2374.8,2374.2,17.05382848]
[1747600053789,0.35273274,2375.2,2373.8,19.8137]
[1747600053790,12.759,2374.7,2373.8,19.8137]
[1747600053975,12.759,2374.7,2374.0,4.21228749]
[1747600054292,4.21152681,2374.5,2374.0,4.2122897]
[1747600054585,4.21154115,2374.5,2373.9,4.21242516]
[1747600054789,4.21177741,2374.3,2373.7,4.21283228]
[1747600054978,4.21215949,2374.1,2373.7,2.55320323]
[1747600055518,1.622,2374.3,2373.7,2.55320323]
[1747600055793,0.0443033,2374.2,2373.0,39.6009]
[1747600055958,4.21297151,2373.7,2373.1,4.21379507]
[1747600056158,4.21305541,2373.6,2373.0,43.81489268]
[1747600056689,4.21302436,2373.6,2373.1,4.21373371]
[1747600056903,4.21303374,2373.6,2373.1,7.03526566]
[1747600057476,4.21303374,2373.6,2373.1,2.82151397]
[1747600057808,1.622,2374.3,2373.2,0.55]
[1747600058008,4.21195605,2374.2,2373.5,4.21318727]
[1747600058209,4.21174271,2374.4,2373.8,4.21256427]
[1747600058393,18.55306012,2374.6,2374.1,4.21202639]
[1747600058709,12.735,2374.6,2373.9,1.5544]
[1747600058905,4.21170058,2374.4,2373.9,14.3944]
[1747600059216,4.21156814,2374.5,2373.9,14.3944]
[1747600059419,4.21156814,2374.5,2373.9,18.60672253]
[1747600059619,6.06,2374.4,2373.9,14.3944]
[1747600059913,6.06,2374.4,2373.9,19.08383546]
[1747600060092,10.2715946,2374.4,2373.9,19.08383546]
[1747600060288,6.06,2374.4,2374.0,0.55]
[1747600060522,0.47681949,2375.4,2374.5,0.55]
[1747600060719,4.68672588,2375.4,2374.8,4.21075472]
[1747600061037,0.47681949,2375.4,2375.2,4.21007358]
[1747600061189,0.47681949,2375.4,2374.8,2.12608017]
[1747600061190,0.47681949,2375.4,2375.3,4.20999452]
[1747600061393,4.20937558,2375.7,2375.1,1.5544]
[1747600061613,4.20942071,2375.7,2375.2,12.839]
[1747600061830,4.20942071,2375.7,2374.7,32.6527]
[1747600061831,4.21005955,2375.3,2374.7,32.6527]
[1747600062032,16.92268077,2375.5,2374.7,19.8137]
[1747600062241,9.6068,2375.4,2374.7,19.8137]
[1747600062417,4.21025995,2375.2,2374.7,19.8137]
[1747600062617,4.2104609,2375.1,2374.6,18.60461228]
[1747600063145,4.21056344,2375.0,2374.1,38.0057]
[1747600063320,4.21097777,2374.8,2374.2,5.76624953]
[1747600063514,4.21108806,2374.7,2374.2,18.60524953]
[1747600063738,5.81675858,2375.4,2374.2,14.3934]
[1747600063946,1.6068,2375.4,2374.6,4.21110618]
[1747600064239,4.21063193,2375.0,2374.4,4.21146201]
[1747600064455,3.98833193,2375.0,2374.4,6.54812498]
[1747600064668,4.2110958,2374.7,2374.2,1.5544]
[1747600064810,4.2111937,2374.7,2374.2,1.5544]
[1747600065011,8.0,2375.0,2374.2,1.5544]
[1747600065207,4.21096414,2374.8,2374.3,4.2116755]
[1747600065511,6.06,2375.1,2374.9,4.21056536]
[1747600065712,4.20973689,2375.5,2374.9,17.04761623]
[1747600065713,10.26974407,2375.5,2374.9,17.04761623]
[1747600066024,10.26966586,2375.5,2374.5,4.21141292]
[1747600066225,4.21054262,2375.0,2374.6,12.837]
[1747600066424,6.06,2375.5,2374.7,4.21099995]
[1747600066638,16.89794608,2375.4,2374.6,12.837]
[1747600066809,4.20999452,2375.3,2374.6,14.1207]
[1747600067009,4.21022746,2375.2,2374.6,12.837]
[1747600067214,4.21063753,2375.0,2374.6,12.837]
[1747600067706,4.21043735,2375.1,2374.6,12.837]
[1747600067910,4.21043735,2375.1,2374.6,17.0482219]
[1747600068111,4.21043735,2375.1,2374.3,4.30357412]
[1747600068443,4.21064999,2375.0,2374.5,4.21133043]
[1747600068645,10.27035202,2375.1,2374.4,12.835]
[1747600068845,10.27035202,2375.1,2374.5,4.21141292]
[1747600069143,4.21053711,2375.0,2374.5,4.21141292]
[1747600069345,6.06,2375.1,2374.5,12.672]
[1747600069551,4.21074129,2374.9,2374.5,12.672]
[1747600069752,4.21169123,2374.4,2374.1,18.192]
[1747600070448,4.21142031,2374.5,2374.1,18.192]
[1747600070652,6.06,2374.8,2374.4,4.21146739]
[1747600070950,6.06,2374.8,2374.5,4.21139987]
[1747600071144,6.06,2374.8,2374.4,4.21155847]
[1747600071351,6.06,2374.8,2374.6,4.21107238]
[1747600071524,4.20975315,2375.5,2374.9,4.21056641]
[1747600071725,4.20983253,2375.4,2374.9,4.21056641]
[1747600072149,8.0,2375.6,2374.4,1.5721]
[1747600072446,1.6519,2375.2,2374.1,39.5778]
[1747600072647,4.21097013,2374.8,2374.2,4.2118541]
[1747600072853,4.21115738,2374.7,2374.1,23.97615634]
[1747600073146,4.21115738,2374.7,2374.2,4.21187096]
[1747600073495,4.21036323,2375.1,2374.2,4.21187096]
[1747600073496,0.90519994,2376.5,2374.4,0.55]
[1747600073621,0.90519994,2376.5,2374.3,1.5721]
[1747600073622,1.52383463,2378.0,2377.2,4.20662964]
[1747600073821,4.20549326,2377.9,2377.2,16.87662964]
[1747600074050,1.52383463,2378.0,2377.2,16.87662964]
[1747600074434,1.52383463,2378.0,2377.2,4.20662964]
[1747600074755,5.77349393,2378.0,2377.1,5.77883074]
[1747600074962,14.16583463,2378.0,2377.2,4.20662964]
[1747600075124,1.61017605,2377.3,2377.2,4.20662964]
[1747600076144,0.35273274,2377.3,2377.2,4.20662964]
[1747600076354,0.35273274,2377.3,2377.1,5.77887071]
[1747600076659,0.35273274,2377.3,2377.2,4.20662964]
[1747600076863,0.35273274,2377.3,2377.2,5.20518211]
[1747600077064,4.1037069,2378.5,2377.9,4.20537086]
[1747600077265,2.5330069,2378.5,2377.9,1.64364875]
[1747600077564,2.5330069,2378.5,2378.2,4.20481905]
[1747600077760,2.5330069,2378.5,2378.3,4.20457633]
[1747600078155,4.20346369,2379.0,2378.4,4.20450723]
[1747600078461,1.5707,2379.3,2378.6,4.2041537]
[1747600078462,5.77368283,2379.3,2378.6,4.2041537]
[1747600078630,4.20310651,2379.2,2378.6,4.2041537]
[1747600078831,18.39569153,2379.3,2378.7,4.2039715]
[1747600079070,14.1927,2379.3,2378.7,4.20390608]
[1747600079251,14.1927,2379.3,2378.6,6.31156181]
[1747600079453,12.666,2380.0,2378.6,6.31156181]
[1747600079454,5.70162018,2380.1,2378.8,4.20380023]
[1747600079674,4.20196026,2379.9,2379.2,4.20298974]
[1747600079847,5.70162018,2380.1,2379.2,4.20298974]
[1747600079848,1.5001,2380.1,2379.2,0.84062794]
[1747600080166,4.20209137,2379.8,2379.2,0.84062794]
[1747600080374,4.20256607,2379.5,2378.8,24.0174676]
[1747600080555,4.20243291,2379.6,2378.8,32.4747]
[1747600080735,12.609,2379.7,2378.7,1.6124]
[1747600080934,12.609,2379.7,2378.8,12.661]
[1747600081186,12.609,2379.7,2378.7,5.81627409]
[1747600081187,8.0,2379.6,2378.7,1.6124]
[1747600081471,4.20285745,2379.4,2378.7,4.20380305]
[1747600081634,4.20259403,2379.5,2378.4,19.8137]
[1747600081849,4.20280359,2379.4,2378.8,4.20367543]
[1747600082568,8.0,2379.8,2378.8,12.657]
[1747600082777,12.595,2379.9,2379.0,4.20344682]
[1747600083091,4.20188293,2379.9,2379.3,4.20283861]
[1747600083297,4.20170007,2380.0,2379.4,4.20274018]
[1747600083447,4.20134244,2380.2,2379.5,12.657]
[1747600083654,1.6207,2380.5,2379.6,4.20238695]
[1747600083879,4.20077224,2380.6,2379.7,5.79598938]
[1747600084068,12.59,2380.8,2379.8,0.57959894]
[1747600084272,4.20116069,2380.3,2379.8,4.78151592]
[1747600084475,4.20109357,2380.4,2379.8,0.57959894]
[1747600084788,4.2009261,2380.5,2379.8,0.57959894]
[1747600084991,12.586,2380.9,2379.9,12.652]
[1747600085291,4.2006365,2380.6,2380.0,1.32315989]
[1747600085494,4.20047367,2380.7,2379.8,13.23159894]
[1747600085665,4.20177575,2380.0,2379.7,1.5938]
[1747600086082,4.20173191,2380.0,2379.4,12.652]
[1747600086478,4.20173191,2380.0,2379.3,22.21948518]
[1747600086479,4.20225421,2379.7,2379.3,34.0309]
[1747600086684,4.20185722,2379.9,2379.3,14.2172]
[1747600086991,4.2014844,2380.2,2379.3,14.2172]
[1747600087193,5.75314314,2380.6,2379.4,5.62441998]
[1747600087397,4.20150266,2380.2,2379.5,4.20247194]
[1747600087694,4.20150266,2380.2,2379.4,1.42172]
[1747600087695,4.2016926,2380.0,2379.4,25.43808942]
[1747600087998,4.2016926,2380.0,2379.4,25.43814898]
[1747600088295,4.20187722,2379.9,2379.5,3.9655349]
[1747600088489,4.20231897,2379.7,2379.4,21.23542]
[1747600088696,4.20223618,2379.7,2379.3,14.2152]
[1747600088896,4.20239481,2379.6,2379.3,14.2152]
[1747600089283,4.20268064,2379.5,2379.1,37.9767]
[1747600089483,18.36320953,2379.9,2379.1,54.93027412]
[1747600089682,4.20231668,2379.7,2379.1,18.163]
[1747600089887,14.1613,2379.9,2379.1,18.163]
[1747600090089,4.2023804,2379.7,2379.1,18.163]
[1747600090287,6.06,2379.6,2379.1,18.163]
[1747600090470,6.06,2379.8,2379.4,4.20260138]
[1747600090864,6.06,2379.8,2379.4,4.76211097]
[1747600091065,6.06,2379.8,2379.5,18.49045292]
[1747600091464,6.06,2379.8,2379.5,18.49055361]
[1747600091701,6.06,2379.8,2379.5,14.288]
[1747600091908,4.20072795,2380.6,2379.5,18.49050978]
[1747600092112,4.20102895,2380.4,2379.7,4.20204716]
[1747600092380,4.20124222,2380.3,2379.7,4.20204716]
[1747600092690,12.20064221,2380.6,2379.8,12.649]
[1747600093018,4.20118397,2380.3,2379.8,12.649]
[1747600093179,4.20153196,2380.1,2379.8,12.649]
[1747600093380,12.20064221,2380.6,2379.8,12.649]
[1747600093575,4.20179626,2380.0,2379.8,12.649]
[1747600093813,4.20168067,2380.0,2379.8,12.649]
[1747600093999,4.20155202,2380.1,2379.8,12.649]
[1747600094312,8.0,2380.6,2379.8,12.649]
[1747600094482,4.20119385,2380.3,2379.8,16.8510163]
[1747600094810,4.20119385,2380.3,2379.8,4.2020163]
[1747600094983,8.0,2380.6,2379.8,2.10512394]
[1747600095307,4.2013376,2380.2,2379.8,2.10512394]
[1747600095713,4.2012444,2380.3,2379.8,12.647]
[1747600096014,24.72966502,2380.6,2379.9,4.20184476]
[1747600096179,20.37016301,2380.9,2379.8,12.647]
[1747600096379,4.20052978,2380.7,2379.8,12.647]
[1747600096582,6.06,2380.9,2379.9,3.32291911]
[1747600096798,4.2007371,2380.6,2380.0,4.20153194]
[1747600096993,10.26013409,2380.9,2380.2,4.20120011]
[1747600097194,4.2002977,2380.8,2380.1,4.20146382]
[1747600097417,10.26018475,2380.9,2379.9,20.17176556]
[1747600097614,4.20030107,2380.8,2380.3,4.20098999]
[1747600097814,4.20030107,2380.8,2380.2,4.20116385]
[1747600097815,4.2002768,2380.8,2380.2,4.20116385]
[1747600098320,6.06,2380.9,2380.3,12.68700616]
[1747600098485,4.20041451,2380.8,2380.4,12.645]
[1747600098684,4.20041451,2380.8,2380.2,4.20120753]
[1747600099016,6.06,2380.9,2380.5,4.20065972]
[1747600099191,10.26010085,2380.9,2380.4,5.83891801]
[1747600099512,4.20054895,2380.7,2380.4,1.638]
[1747600099713,10.26015095,2380.9,2380.4,1.638]
[1747600099714,4.20026881,2380.8,2380.4,1.638]
[1747600100019,4.20026881,2380.8,2380.3,0.84027117]
[1747600100218,4.20088571,2380.5,2380.1,1.638]
[1747600100396,4.20078297,2380.6,2380.0,8.20012221]
[1747600100620,1.6013,2380.8,2380.0,3.99854656]
[1747600100799,4.20064813,2380.6,2380.0,8.20022697]
[1747600101022,5.80159621,2380.8,2380.0,3.99854656]
[1747600101322,4.20084883,2380.5,2380.0,16.50754656]
[1747600101530,4.20130255,2380.3,2379.9,15.83191911]
[1747600101879,4.2010824,2380.4,2379.9,15.83191911]
[1747600102414,12.496,2380.7,2379.9,1.68491911]
[1747600102712,12.496,2380.7,2379.9,12.509]
[1747600102918,4.20052879,2380.7,2380.2,4.20123969]
[1747600103125,6.06,2380.9,2380.3,12.509]
[1747600103295,4.2000924,2380.9,2380.2,1.638]
[1747600103497,4.2000924,2380.9,2380.2,14.147]
[1747600103806,0.0443033,2380.8,2380.0,12.509]
[1747600104032,6.06,2381.0,2380.0,12.509]
[1747600104207,12.488,2380.9,2380.0,13.9237]
[1747600104429,4.20029269,2380.8,2380.3,4.20105305]
[1747600104630,4.20057501,2380.7,2380.1,4.20139706]
[1747600104828,4.20066548,2380.6,2380.1,4.20139706]
[1747600105137,4.20062316,2380.6,2380.2,1.81250971]
[1747600105302,4.20011354,2380.9,2380.0,13.9237]
[1747600105502,4.20097949,2380.4,2380.0,13.9237]
[1747600105727,4.20075507,2380.6,2380.1,4.20147596]
[1747600105927,4.20089926,2380.5,2380.0,18.12530475]
[1747600106128,18.544,2381.0,2380.0,1.4147]
[1747600106335,4.20026881,2380.8,2380.1,12.508]
[1747600106505,4.20095001,2380.5,2380.1,12.508]
[1747600106703,4.2010266,2380.4,2380.1,12.508]
[1747600106958,4.20072245,2380.6,2380.1,16.70949876]
[1747600107257,6.06,2381.0,2380.5,4.2006647]
[1747600107470,1.5205,2381.5,2381.1,4.19964549]
[1747600107648,12.472,2381.8,2381.0,12.508]
[1747600107957,4.19929626,2381.4,2380.9,16.7079966]
[1747600108122,4.19901048,2381.6,2381.0,4.1998201]
[1747600108450,1.5205,2381.9,2381.0,2.09078167]
[1747600108653,4.19862835,2381.8,2381.0,2.09078167]
[1747600108862,5.71887817,2381.9,2381.0,2.09078167]
[1747600109148,4.19850673,2381.8,2381.3,4.19929729]
[1747600109314,4.19837975,2381.9,2381.4,4.61909282]
[1747600109517,4.19843099,2381.9,2381.4,0.41992973]
[1747600109718,16.66085554,2382.2,2381.5,4.19902605]
[1747600109918,4.19808849,2382.1,2381.6,4.19885075]
[1747600110156,12.463,2382.2,2381.5,4.19895726]
[1747600110375,4.19793596,2382.2,2381.6,17.16670697]
[1747600110825,4.19808021,2382.1,2381.6,12.9678887]
[1747600111335,4.19805674,2382.1,2381.6,17.1667198]
[1747600111534,4.19774226,2382.3,2381.8,4.19846554]
[1747600111740,4.19774226,2382.3,2381.7,1.5448]
[1747600111944,0.0008,2382.4,2381.8,1.59783231]
[1747600112117,0.0008,2382.4,2381.6,0.4618887]
[1747600112118,0.0008,2382.4,2381.6,12.9658887]
[1747600112465,4.19860509,2381.8,2381.5,32.3177]
[1747600112636,8.0,2382.2,2381.5,12.504]
[1747600112835,8.0008,2382.4,2381.5,12.504]
[1747600113050,4.19831735,2382.0,2381.5,12.504]
[1747600113243,4.1984452,2381.9,2381.5,12.504]
[1747600113449,4.19851754,2381.8,2381.5,12.504]
[1747600113664,9.5942,2382.0,2381.2,12.504]
[1747600113829,4.19912722,2381.5,2381.2,12.504]
[1747600114164,4.19938195,2381.4,2381.1,1.5448]
[1747600114485,4.19939011,2381.3,2381.1,1.5448]
[1747600114639,4.19956324,2381.2,2381.1,1.5448]
[1747600114834,4.19968634,2381.2,2380.7,1.5681]
[1747600115034,4.19886695,2381.6,2380.7,2.14497861]
[1747600115221,5.80865108,2382.1,2380.7,1.5681]
[1747600115421,4.1999495,2381.0,2380.7,1.5681]
[1747600115662,4.20004556,2381.0,2380.7,1.5681]
[1747600115846,4.19956324,2381.2,2380.7,1.5681]
[1747600116024,4.20005077,2381.0,2380.4,12.503]
[1747600116219,4.19975531,2381.1,2380.6,4.200538]
[1747600116869,0.0443033,2381.0,2380.3,18.142]
[1747600117029,14.0385,2381.4,2380.3,18.142]
[1747600117030,4.20054398,2380.7,2380.3,18.142]
[1747600117350,8.0,2381.0,2380.3,18.142]
[1747600117552,1.6105,2381.4,2380.3,18.142]
[1747600117852,4.200473,2380.7,2380.3,20.11301]
[1747600118059,12.199916,2381.0,2380.3,18.142]
[1747600118350,4.20116215,2380.3,2379.8,1.5681]
[1747600118550,4.20133954,2380.2,2379.8,1.5681]
[1747600118750,5.81075921,2380.9,2379.8,1.5681]
[1747600118957,4.20113905,2380.4,2379.9,4.20181481]
[1747600119152,4.20026881,2380.8,2380.1,4.20150179]
[1747600119455,4.20084884,2380.5,2379.9,0.9972056]
[1747600119759,1.5469,2382.4,2381.3,1.6274]
[1747600119920,1.5469,2382.4,2381.3,14.1314]
[1747600120117,1.5469,2382.4,2381.3,15.54454]
[1747600120322,1.5469,2382.4,2382.0,4.19804732]
[1747600120555,0.0008,2382.4,2381.9,4.19827503]
[1747600120758,4.19838179,2382.4,2381.3,3.04054]
[1747600120969,0.0008,2382.4,2381.4,4.19905837]
[1747600121125,4.19786812,2382.2,2381.5,16.70202754]
[1747600121468,4.19786812,2382.2,2381.3,1.6274]
[1747600121469,4.19762693,2382.3,2381.7,4.19858902]
[1747600121669,4.19762693,2382.3,2381.6,16.70181572]
[1747600121951,4.19762693,2382.3,2381.7,4.19851278]
[1747600122170,4.19762693,2382.3,2381.8,2.09003285]
[1747600122370,4.19762693,2382.3,2381.8,6.28849601]
[1747600122567,4.19772926,2382.3,2381.8,6.28840702]
[1747600123077,0.0008,2382.4,2381.8,6.28840702]
[1747600123078,4.19783629,2382.2,2381.8,2.09003285]
[1747600123773,4.19777494,2382.3,2381.8,12.503]
[1747600123975,4.19779289,2382.3,2381.8,12.503]
[1747600124138,4.19779289,2382.3,2381.8,16.70141376]
[1747600124540,4.19779289,2382.3,2381.8,12.503]
[1747600124770,4.19771601,2382.3,2381.8,12.503]